bitfinex/quotes_BTCUSD_20240617
["timestamp","ask_amount","ask_price","bid_price","bid_amount"]
[1718615836140,2.16474887,66138.0,66137.0,0.00285]
[1718615838524,1.86235087,66138.0,66137.0,0.00285]
[1718615839960,2.16474887,66138.0,66137.0,0.00285]
[1718615840727,1.86235087,66138.0,66137.0,0.00285]
[1718615841361,2.16474887,66138.0,66137.0,0.00285]
[1718615843308,2.18663836,66138.0,66137.0,0.00285]
[1718615843958,2.18663805,66138.0,66137.0,0.00285]
[1718615844181,2.16474887,66138.0,66137.0,0.00285]
[1718615844383,2.18569421,66138.0,66137.0,0.00285]
[1718615844590,2.13499421,66138.0,66137.0,0.00285]
[1718615844810,1.88329621,66138.0,66137.0,0.00285]
[1718615845454,1.83259621,66138.0,66137.0,0.00285]
[1718615845695,1.88329621,66138.0,66137.0,0.00285]
[1718615846125,1.86235087,66138.0,66137.0,0.00285]
[1718615846330,1.8839609,66138.0,66137.0,0.00285]
[1718615846754,1.67324902,66138.0,66137.0,0.00285]
[1718615846971,1.22675102,66138.0,66137.0,0.00285]
[1718615847399,1.27745102,66138.0,66137.0,0.00285]
[1718615847611,1.22675102,66138.0,66137.0,0.00285]
[1718615847819,1.27745102,66138.0,66137.0,0.00285]
[1718615848240,1.22675102,66138.0,66137.0,0.00285]
[1718615848441,1.27745102,66138.0,66137.0,0.00285]
[1718615850445,1.26541285,66138.0,66137.0,0.00285]
[1718615850701,1.27461628,66138.0,66137.0,0.00285]
[1718615857236,1.28459609,66138.0,66137.0,0.00285]
[1718615857412,1.27461628,66138.0,66137.0,0.00285]
[1718615859584,1.28459609,66138.0,66137.0,0.00285]
[1718615861186,1.26093034,66138.0,66137.0,0.00285]
[1718615862252,1.56332834,66138.0,66137.0,0.00285]
[1718615863649,1.55334853,66138.0,66137.0,0.00285]
[1718615864033,1.57701347,66138.0,66137.0,0.00285]
[1718615864679,1.52631347,66138.0,66137.0,0.00285]
[1718615864880,1.57701347,66138.0,66137.0,0.00285]
[1718615867177,1.59883621,66138.0,66137.0,0.00285]
[1718615867386,1.58699328,66138.0,66137.0,0.00285]
[1718615867837,1.57701347,66138.0,66137.0,0.00285]
[1718615868947,1.58699328,66138.0,66137.0,0.00285]
[1718615869352,1.57701347,66138.0,66137.0,0.00285]
[1718615869932,1.67029328,66138.0,66137.0,0.00285]
[1718615870113,1.75263306,66138.0,66137.0,0.00285]
[1718615872069,2.05690864,66138.0,66137.0,0.00285]
[1718615872239,2.20721885,66138.0,66137.0,0.00285]
[1718615874556,2.25251463,66138.0,66137.0,0.00285]
[1718615876156,2.35251463,66138.0,66137.0,0.00285]
[1718615876411,2.25251463,66138.0,66137.0,0.00285]
[1718615876813,2.35251463,66138.0,66137.0,0.00285]
[1718615877310,2.25251463,66138.0,66137.0,0.00285]
[1718615877875,1.67635377,66127.0,66126.0,1e-08]
[1718615878081,1.86805377,66127.0,66126.0,1e-08]
[1718615878287,1.98193217,66127.0,66126.0,1e-08]
[1718615878738,2.00341158,66127.0,66126.0,1e-08]
[1718615879251,2.00341158,66127.0,66126.0,0.00200001]
[1718615879615,2.00341158,66127.0,66126.0,0.00300001]
[1718615880603,2.00341158,66127.0,66126.0,0.00200001]
[1718615881022,2.00341158,66127.0,66126.0,0.00100001]
[1718615881594,2.00341158,66127.0,66126.0,0.00300001]
[1718615881773,1.93123217,66127.0,66126.0,0.00100001]
[1718615881998,2.00394694,66127.0,66126.0,0.00200001]
[1718615882111,2.01094694,66127.0,66126.0,0.00200001]
[1718615882307,1.98893217,66127.0,66126.0,0.00200001]
[1718615882978,1.96004582,66127.0,66126.0,0.00100001]
[1718615883196,2.01074582,66127.0,66126.0,0.00100001]
[1718615883427,2.01874582,66127.0,66126.0,0.00200001]
[1718615883642,1.98695236,66127.0,66126.0,0.00200001]
[1718615883853,1.49280436,66127.0,66126.0,0.00200001]
[1718615884098,1.24105636,66127.0,66126.0,0.00200001]
[1718615885384,0.7849984,66127.0,66126.0,0.14320001]
[1718615885591,0.4825504,66127.0,66126.0,0.14320001]
[1718615885803,0.7849984,66127.0,66126.0,0.14320001]
[1718615886227,0.1801024,66127.0,66126.0,0.14320001]
[1718615886451,0.0288784,66127.0,66126.0,0.17620001]
[1718615886700,0.1721024,66127.0,66126.0,0.17520001]
[1718615886903,0.1721024,66127.0,66126.0,0.18020001]
[1718615886904,0.1661024,66127.0,66126.0,0.18020001]
[1718615887120,0.0148784,66127.0,66126.0,0.3322878]
[1718615887325,0.0138784,66127.0,66126.0,0.60702732]
[1718615887527,0.151214,66132.0,66130.0,0.1408]
[1718615887726,0.151212,66132.0,66131.0,0.1638]
[1718615887956,0.453637,66132.0,66131.0,0.1638]
[1718615888583,0.453637,66132.0,66131.0,0.1738]
[1718615888877,0.453637,66132.0,66131.0,0.1638]
[1718615889076,0.756062,66132.0,66131.0,0.1638]
[1718615890138,0.453637,66132.0,66131.0,0.1658]
[1718615890358,0.453637,66132.0,66131.0,0.1688]
[1718615890565,0.151212,66132.0,66131.0,0.1788]
[1718615890775,0.453637,66132.0,66131.0,0.1788]
[1718615891412,0.756062,66132.0,66131.0,0.1688]
[1718615891632,0.02459995,66138.0,66132.0,0.1405]
[1718615891633,0.151211,66133.0,66132.0,0.1405]
[1718615891867,0.302403,66137.0,66132.0,0.1635]
[1718615892088,0.453606,66137.0,66134.0,0.0763]
[1718615892308,0.453616,66135.0,66134.0,0.0763]
[1718615892514,0.453616,66135.0,66134.0,0.165]
[1718615892946,0.453616,66135.0,66134.0,0.175]
[1718615893397,0.151205,66135.0,66134.0,0.175]
[1718615893621,0.02459995,66138.0,66137.0,0.1425]
[1718615893862,0.00093501,66138.0,66137.0,0.1655]
[1718615894068,0.15213401,66138.0,66137.0,0.1655]
[1718615894317,0.00093501,66138.0,66137.0,0.1755]
[1718615895183,0.00193501,66138.0,66137.0,0.1835]
[1718615895386,0.00193501,66138.0,66137.0,0.1735]
[1718615895592,0.15313401,66138.0,66137.0,0.1735]
[1718615896443,0.45553201,66138.0,66137.0,0.1735]
[1718615896648,0.45653201,66138.0,66137.0,0.1835]
[1718615897925,0.00293501,66138.0,66137.0,0.1935]
[1718615898964,0.00293501,66138.0,66137.0,0.344701]
[1718615899173,0.00293501,66138.0,66137.0,0.1935]
[1718615899420,0.01456962,66138.0,66137.0,0.1935]
[1718615899844,0.16576862,66138.0,66137.0,0.1835]
[1718615900463,0.01456962,66138.0,66137.0,0.1835]
[1718615901295,0.46816662,66138.0,66137.0,0.1835]
[1718615901502,0.16576862,66138.0,66137.0,0.1835]
[1718615902326,0.16576862,66138.0,66137.0,0.1935]
[1718615902533,0.01456962,66138.0,66137.0,0.1935]
[1718615902739,0.46816662,66138.0,66137.0,0.1835]
[1718615902941,0.45653201,66138.0,66137.0,0.1835]
[1718615903145,0.46823229,66138.0,66137.0,0.1835]
[1718615908178,0.16583429,66138.0,66137.0,0.1835]
[1718615908390,0.16583429,66138.0,66137.0,0.18344358]
[1718615908564,0.46823229,66138.0,66137.0,0.18344358]
[1718615908769,0.16583429,66138.0,66137.0,0.18344358]
[1718615909632,0.46823229,66138.0,66137.0,0.18344358]
[1718615911667,0.77063029,66138.0,66137.0,0.18344358]
[1718615911868,0.46823229,66138.0,66137.0,0.18344358]
[1718615912650,0.46823229,66138.0,66137.0,0.18429358]
[1718615914819,0.01463529,66138.0,66137.0,0.18429358]
[1718615915026,0.01463529,66138.0,66137.0,0.19429358]
[1718615915190,0.46823229,66138.0,66137.0,0.19429358]
[1718615916491,0.46823229,66138.0,66137.0,0.31978722]
[1718615918291,0.01463529,66138.0,66137.0,0.92547801]
[1718615918492,0.01463529,66138.0,66137.0,0.62307601]
[1718615918695,0.01463529,66138.0,66137.0,0.68582017]
[1718615918696,0.00293501,66138.0,66137.0,0.68582017]
[1718615918891,0.014627,66138.0,66137.0,0.53461917]
[1718615919384,0.014627,66138.0,66137.0,0.53460989]
[1718615921241,0.165826,66138.0,66137.0,0.52460989]
[1718615921457,0.165826,66138.0,66137.0,0.53460989]
[1718615921885,0.165826,66138.0,66137.0,0.54160989]
[1718615922752,0.014627,66138.0,66137.0,0.54160989]
[1718615923398,0.014627,66138.0,66137.0,0.99521289]
[1718615923604,0.00293501,66138.0,66137.0,0.99521289]
[1718615923809,0.00293501,66138.0,66137.0,0.69281089]
[1718615924042,0.00293501,66138.0,66137.0,0.54160989]
[1718615924243,0.014627,66138.0,66137.0,0.54160989]
[1718615926629,0.014627,66138.0,66137.0,0.69281089]
[1718615927049,0.00293501,66138.0,66137.0,0.69281089]
[1718615927267,0.01464592,66138.0,66137.0,0.54160989]
[1718615927896,0.00293501,66138.0,66137.0,0.54160989]
[1718615928703,0.00293501,66138.0,66137.0,0.54160904]
[1718615929318,0.00293501,66138.0,66137.0,0.58671139]
[1718615930169,0.00293501,66138.0,66137.0,0.57671139]
[1718615930369,0.15413401,66138.0,66137.0,0.53160904]
[1718615930681,0.16584492,66138.0,66137.0,0.53160904]
[1718615931301,0.16584492,66138.0,66137.0,0.58671139]
[1718615931491,0.16584492,66138.0,66137.0,0.53160904]
[1718615931713,0.15413401,66138.0,66137.0,0.4788662]
[1718615931890,0.15413401,66138.0,66137.0,0.6093485]
[1718615932103,0.16584492,66138.0,66137.0,0.6093485]
[1718615932452,0.16584492,66138.0,66137.0,0.60936415]
[1718615933490,0.16584492,66138.0,66137.0,0.54161112]
[1718615933971,0.16584492,66138.0,66137.0,0.54161116]
[1718615934134,0.16561869,66138.0,66137.0,0.54161116]
[1718615935382,0.01441969,66138.0,66137.0,0.54161116]
[1718615935504,0.01441969,66138.0,66137.0,0.63196126]
[1718615935711,0.01441969,66138.0,66137.0,0.78316226]
[1718615936506,0.01441969,66138.0,66137.0,0.69281141]
[1718615937411,0.01441969,66138.0,66137.0,1.65071741]
[1718615937594,0.01441969,66138.0,66137.0,1.34831541]
[1718615937799,0.01441969,66138.0,66137.0,1.44831541]
[1718615938443,0.01341969,66138.0,66137.0,1.44031541]
[1718615938864,0.01441969,66138.0,66137.0,1.45031541]
[1718615939327,0.01341969,66138.0,66137.0,1.44031541]
[1718615939734,0.01341969,66138.0,66137.0,1.45431541]
[1718615941406,0.01341969,66138.0,66137.0,1.75671741]
[1718615941620,0.01341969,66138.0,66137.0,1.80671741]
[1718615942044,0.01341969,66138.0,66137.0,1.94224256]
[1718615943141,0.01341969,66138.0,66137.0,1.80671741]
[1718615943998,0.01341969,66138.0,66137.0,1.70671741]
[1718615944205,0.01341969,66138.0,66137.0,1.79271741]
[1718615944433,0.01341969,66138.0,66137.0,1.96024506]
[1718615945053,0.01241969,66138.0,66137.0,1.95024506]
[1718615945459,0.01226205,66138.0,66137.0,1.96424506]
[1718615946110,0.01226205,66138.0,66137.0,2.15241952]
[1718615946327,0.01226205,66138.0,66137.0,1.82878834]
[1718615947483,0.01226205,66138.0,66137.0,1.8106965]
[1718615949113,0.01226205,66138.0,66137.0,1.82878834]
[1718615949313,0.01226205,66138.0,66137.0,1.8106965]
[1718615951502,0.01226205,66138.0,66137.0,1.7599965]
[1718615951707,0.01226205,66138.0,66137.0,1.8106965]
[1718615954273,0.01226205,66138.0,66137.0,1.4082945]
[1718615954682,0.01226205,66138.0,66137.0,1.3575945]
[1718615954887,0.01226205,66138.0,66137.0,1.4082945]
[1718615955419,0.01226205,66138.0,66137.0,1.4082977]
[1718615956269,0.01226205,66138.0,66137.0,1.5082977]
[1718615957360,0.01226205,66138.0,66137.0,1.8106997]
[1718615957580,0.01226205,66138.0,66137.0,1.82878973]
[1718615957786,0.01226205,66138.0,66137.0,1.8106997]
[1718615958731,0.01226205,66138.0,66137.0,1.82878973]
[1718615958953,0.01226205,66138.0,66137.0,1.82878808]
[1718615961192,0.01226205,66138.0,66137.0,1.81069677]
[1718615961649,0.01226205,66138.0,66137.0,1.75999677]
[1718615961878,0.01226205,66138.0,66137.0,1.81069677]
[1718615962109,0.01226205,66138.0,66137.0,1.82878733]
[1718615962324,0.01226205,66138.0,66137.0,1.37568533]
[1718615962539,0.01226205,66138.0,66137.0,1.40829477]
[1718615962803,0.01226205,66138.0,66137.0,1.50829477]
[1718615964346,0.01226205,66138.0,66137.0,1.52638533]
[1718615965523,0.01226205,66138.0,66137.0,1.50829477]
[1718615965732,0.01226205,66138.0,66137.0,1.50829677]
[1718615970322,0.01226205,66138.0,66137.0,1.40829677]
[1718615971221,0.01226205,66138.0,66137.0,1.50829677]
[1718615972573,0.01226205,66138.0,66137.0,1.64368324]
[1718615972846,0.01226205,66138.0,66137.0,1.50829677]
[1718615973278,0.01226205,66138.0,66137.0,1.64367751]
[1718615973498,0.01226205,66138.0,66137.0,1.54367751]
[1718615973727,0.01226205,66138.0,66137.0,1.40829677]
[1718615973938,0.01226205,66138.0,66137.0,1.50829677]
[1718615974386,0.01226205,66138.0,66137.0,1.64367751]
[1718615974834,0.01226205,66138.0,66137.0,1.64366849]
[1718615976234,0.01226205,66138.0,66137.0,1.86068975]
[1718615976454,0.00093501,66145.0,66144.0,0.41]
[1718615976671,0.00093501,66145.0,66144.0,2.06393944]
[1718615976934,0.00093501,66145.0,66144.0,2.58477442]
[1718615977140,0.00085,66159.0,66150.0,1.4078]
[1718615977352,0.00085,66159.0,66157.0,0.996057]
[1718615977564,0.00085,66159.0,66157.0,1.86941244]
[1718615977778,0.00085,66159.0,66157.0,2.08059742]
[1718615978350,0.00085,66159.0,66157.0,2.21571397]
[1718615978555,0.00085,66159.0,66157.0,2.16501397]
[1718615978754,0.00085,66159.0,66157.0,2.21571397]
[1718615979160,0.00085,66159.0,66157.0,2.09459742]
[1718615979924,0.00085,66159.0,66157.0,2.10859742]
[1718615980127,0.00085,66159.0,66157.0,2.05789742]
[1718615980327,0.00085,66159.0,66157.0,1.92041244]
[1718615980444,0.00085,66159.0,66157.0,2.12660155]
[1718615981338,0.00085,66159.0,66157.0,1.92041244]
[1718615983782,0.00085,66159.0,66157.0,1.92037715]
[1718615984002,0.00085,66159.0,66157.0,2.22268815]
[1718615984218,0.00085,66159.0,66157.0,1.92037715]
[1718615986004,0.00085,66159.0,66157.0,1.86967715]
[1718615986218,0.00085,66159.0,66157.0,1.92037715]
[1718615989053,0.00085,66159.0,66157.0,1.94783176]
[1718615989476,0.00085,66159.0,66157.0,1.94782489]
[1718615990559,0.00085,66159.0,66157.0,1.96559541]
[1718615991647,0.00066806,66158.0,66157.0,1.96559541]
[1718615992377,0.00066806,66158.0,66157.0,2.02605941]
[1718615994333,0.00066806,66158.0,66157.0,1.97535941]
[1718615994545,0.00066806,66158.0,66157.0,2.02605941]
[1718615994752,0.00066806,66158.0,66157.0,2.0260216]
[1718615995795,0.00066806,66158.0,66157.0,2.13824772]
[1718615996426,0.00066806,66158.0,66157.0,2.13824883]
[1718615996637,0.00066806,66158.0,66157.0,2.02602271]
[1718615998134,0.00066806,66158.0,66157.0,2.30351894]
[1718615998310,0.00066806,66158.0,66157.0,2.35421894]
[1718615998760,0.00066806,66158.0,66157.0,2.21141894]
[1718616000154,0.00066806,66158.0,66157.0,0.54370192]
[1718616000155,0.14836806,66158.0,66157.0,0.54370192]
[1718616000368,0.60182706,66158.0,66157.0,0.32327573]
[1718616000582,1.25713906,66158.0,66157.0,0.18008779]
[1718616000793,1.27032528,66158.0,66157.0,0.18008779]
[1718616000997,1.27032528,66158.0,66157.0,0.028]
[1718616001214,1.26741532,66158.0,66157.0,0.028]
[1718616001437,1.26741532,66158.0,66157.0,0.014]
[1718616001857,1.26741532,66158.0,66157.0,0.028]
[1718616002057,1.26741532,66158.0,66157.0,0.014]
[1718616002269,1.27032528,66158.0,66157.0,0.023]
[1718616002696,1.27032528,66158.0,66157.0,0.027]
[1718616002924,1.21671532,66158.0,66157.0,0.023]
[1718616003138,1.52193128,66158.0,66157.0,0.014]
[1718616003350,1.52193128,66158.0,66157.0,0.018]
[1718616003563,1.52193128,66158.0,66141.0,0.06066219]
[1718616003564,0.290099,66138.0,66137.0,0.00785]
[1718616003785,0.290099,66138.0,66137.0,0.34537422]
[1718616004008,0.14897175,66138.0,66137.0,0.34537422]
[1718616004683,0.30017075,66138.0,66137.0,0.21989998]
[1718616004896,0.30017075,66138.0,66137.0,0.34537694]
[1718616005133,0.14897175,66138.0,66137.0,0.36837694]
[1718616005759,0.14897175,66138.0,66137.0,0.53357794]
[1718616005985,0.14897175,66138.0,66137.0,0.51957794]
[1718616006411,0.14897175,66138.0,66137.0,0.53357794]
[1718616006611,0.14897175,66138.0,66137.0,0.51957794]
[1718616007308,0.1399,66138.0,66137.0,0.52157794]
[1718616007524,0.14997175,66138.0,66137.0,0.37037694]
[1718616007769,0.14997175,66138.0,66137.0,0.38815729]
[1718616007984,0.14997175,66138.0,66137.0,0.84176029]
[1718616008218,0.14997175,66138.0,66137.0,0.85576029]
[1718616008455,0.1399,66138.0,66137.0,0.84176029]
[1718616008677,0.1389,66138.0,66137.0,0.85376029]
[1718616008883,0.1389,66138.0,66137.0,0.95376029]
[1718616009058,0.1399,66138.0,66137.0,0.86776029]
[1718616009304,0.1399,66138.0,66137.0,0.56535829]
[1718616009509,0.1399,66138.0,66137.0,0.41415729]
[1718616009719,0.14997175,66138.0,66137.0,0.28938033]
[1718616009893,0.14997175,66138.0,66137.0,0.46486022]
[1718616010317,0.14997175,66138.0,66137.0,0.28938033]
[1718616010527,0.30117075,66138.0,66137.0,0.28938033]
[1718616011137,0.30117075,66138.0,66137.0,0.23868033]
[1718616011352,0.14997175,66138.0,66137.0,0.23868033]
[1718616012795,0.14997175,66138.0,66137.0,0.28868033]
[1718616013825,0.14997175,66138.0,66137.0,0.43988133]
[1718616014245,0.593497,66138.0,66137.0,0.23868033]
[1718616014668,0.60354006,66138.0,66137.0,0.22871814]
[1718616015565,0.30114206,66138.0,66137.0,0.22871814]
[1718616016203,0.30114206,66138.0,66137.0,0.28868033]
[1718616016409,0.14994306,66138.0,66137.0,0.28868033]
[1718616017462,0.14994306,66138.0,66137.0,0.23868033]
[1718616017672,0.30114206,66138.0,66137.0,0.23868033]
[1718616019433,0.14994306,66138.0,66137.0,0.28868033]
[1718616020087,0.14994306,66138.0,66137.0,0.43988133]
[1718616020293,0.14994306,66138.0,66137.0,0.28868033]
[1718616023153,0.14994306,66138.0,66137.0,0.22871814]
[1718616023299,0.14994306,66138.0,66137.0,0.23868033]
[1718616023300,0.60354006,66138.0,66137.0,0.23868033]
[1718616023891,0.60354006,66138.0,66137.0,0.22871814]
[1718616024340,0.60354006,66138.0,66137.0,0.23868033]
[1718616025321,0.30114206,66138.0,66137.0,0.28868033]
[1718616025526,0.30114206,66138.0,66137.0,0.36416268]
[1718616026175,0.14994306,66138.0,66137.0,0.41416268]
[1718616027444,0.14994306,66138.0,66137.0,0.41416248]
[1718616028955,0.14994306,66138.0,66137.0,0.41416208]
[1718616030104,0.14994306,66138.0,66137.0,0.36416208]
[1718616031771,0.14994306,66138.0,66137.0,0.41416208]
[1718616031983,0.15771117,66138.0,66137.0,0.41416208]
[1718616033391,0.09551117,66138.0,66137.0,0.56536308]
[1718616033769,0.0777,66138.0,66137.0,0.56536308]
[1718616034001,0.001,66138.0,66137.0,0.56536308]
[1718616034912,0.001,66138.0,66137.0,1.27016708]
[1718616035137,0.001,66138.0,66137.0,1.28825792]
[1718616035491,0.001,66138.0,66137.0,0.88585592]
[1718616035809,0.001,66138.0,66137.0,0.74228333]
[1718616035977,0.001,66138.0,66137.0,0.88584295]
[1718616036819,0.001,66138.0,66137.0,0.94857965]
[1718616038105,0.001,66138.0,66137.0,1.35098165]
[1718616038341,0.001,66138.0,66137.0,1.77859737]
[1718616038513,0.0638,66150.0,66149.0,0.00996219]
[1718616038722,0.0638,66150.0,66149.0,0.39895966]
[1718616038924,0.08164549,66150.0,66149.0,0.37324227]
[1718616039453,0.08164549,66150.0,66149.0,0.36328008]
[1718616039661,0.83750249,66150.0,66149.0,0.36328008]
[1718616039865,0.91770249,66150.0,66149.0,0.30754926]
[1718616040064,0.91770249,66150.0,66149.0,0.32154926]
[1718616040220,0.91670249,66150.0,66149.0,0.31454926]
[1718616040598,0.91670249,66150.0,66149.0,0.30054926]
[1718616040803,0.91770249,66150.0,66149.0,0.31454926]
[1718616041006,0.91770249,66150.0,66149.0,0.32854926]
[1718616041355,0.61535949,66150.0,66149.0,0.32854926]
[1718616041764,0.61535949,66150.0,66149.0,0.39128408]
[1718616042342,0.61535949,66150.0,66149.0,0.36328376]
[1718616042343,0.61435949,66150.0,66149.0,0.36328376]
[1718616042545,0.61435949,66150.0,66149.0,0.37628376]
[1718616042977,0.91670249,66150.0,66149.0,0.37628376]
[1718616043146,0.91670249,66150.0,66149.0,0.32754926]
[1718616043668,0.61435949,66150.0,66149.0,0.32754926]
[1718616044675,0.91670249,66150.0,66149.0,0.32754926]
[1718616045288,0.91670249,66150.0,66149.0,0.37250616]
[1718616045721,0.61435949,66150.0,66149.0,0.37250616]
[1718616046340,0.91670249,66150.0,66149.0,0.37250616]
[1718616046544,0.61435949,66150.0,66149.0,0.37250616]
[1718616046737,0.61435949,66150.0,66149.0,0.3726744]
[1718616047620,0.61435949,66150.0,66149.0,0.32754926]
[1718616048805,0.61435949,66150.0,66149.0,0.20208779]
[1718616048941,0.61435949,66150.0,66149.0,0.32755704]
[1718616049170,0.61435949,66150.0,66149.0,0.32755785]
[1718616050027,0.91670249,66150.0,66149.0,0.32755785]
[1718616050662,0.91670249,66150.0,66149.0,0.32755776]
[1718616051074,0.91670249,66150.0,66149.0,0.37268623]
[1718616052062,0.91670249,66150.0,66149.0,0.32755814]
[1718616052265,0.91670249,66150.0,66149.0,0.37268593]
[1718616052489,0.91670249,66150.0,66149.0,0.36768593]
[1718616053508,1.22195545,66150.0,66149.0,0.19759814]
[1718616053724,1.22195545,66150.0,66149.0,0.027]
[1718616054143,1.27265545,66150.0,66149.0,0.027]
[1718616055175,1.27265545,66150.0,66149.0,0.014]
[1718616055599,1.57499845,66150.0,66149.0,0.021]
[1718616055809,1.80863554,66150.0,66149.0,0.007]
[1718616056012,1.06115596,66147.0,66146.0,0.00098347]
[1718616056217,1.56961196,66147.0,66146.0,0.00098347]
[1718616056427,1.58740332,66147.0,66146.0,0.00098347]
[1718616056609,1.19938496,66139.0,66138.0,0.00098347]
[1718616056974,1.19938496,66139.0,66138.0,0.15307126]
[1718616057247,1.21717632,66139.0,66138.0,0.17607126]
[1718616059116,1.21717632,66139.0,66138.0,0.19007126]
[1718616059379,1.21717632,66139.0,66138.0,0.00098347]
[1718616059805,1.21717632,66139.0,66138.0,0.02798347]
[1718616060405,1.21717632,66139.0,66138.0,0.01498347]
[1718616060660,1.21717632,66139.0,66138.0,0.00098347]
[1718616060868,1.21717632,66139.0,66138.0,0.02698347]
[1718616062620,1.21426636,66139.0,66138.0,0.02698347]
[1718616062823,1.26787632,66139.0,66138.0,0.02698347]
[1718616063438,1.26787632,66139.0,66138.0,0.01398347]
[1718616063876,1.26787632,66139.0,66138.0,0.02598347]
[1718616064333,1.57026932,66139.0,66138.0,0.02598347]
[1718616066687,1.57026932,66139.0,66138.0,0.01298347]
[1718616066897,1.57026932,66139.0,66138.0,0.00098347]
[1718616067103,1.58026932,66139.0,66138.0,0.00598347]
[1718616067536,1.58026932,66139.0,66138.0,0.01298347]
[1718616067537,1.57026932,66139.0,66138.0,0.01298347]
[1718616067743,1.58026932,66139.0,66138.0,0.00798347]
[1718616067983,1.58126932,66139.0,66138.0,0.00798347]
[1718616068362,1.58026932,66139.0,66138.0,0.00798347]
[1718616068945,1.58026932,66139.0,66138.0,0.00098347]
[1718616070442,1.58326932,66139.0,66138.0,0.00098347]
[1718616070645,1.88566232,66139.0,66138.0,0.00098347]
[1718616070845,2.02655822,66139.0,66138.0,0.00098347]
[1718616071044,1.82416522,66139.0,66138.0,0.00098347]
[1718616072084,1.82416522,66139.0,66138.0,0.00183347]
[1718616073245,1.68326932,66139.0,66138.0,0.00183347]
[1718616074292,1.70166927,66139.0,66138.0,0.00183347]
[1718616074529,1.33857627,66139.0,66138.0,0.00183347]
[1718616074969,1.38927627,66139.0,66138.0,0.00183347]
[1718616076033,1.38627627,66139.0,66138.0,0.00183347]
[1718616076871,1.38627627,66139.0,66138.0,0.00283347]
[1718616080088,1.40993802,66139.0,66138.0,0.00283347]
[1718616082511,0.51344206,66139.0,66138.0,0.00283347]
[1718616082735,0.56414206,66139.0,66138.0,0.00283347]
[1718616083129,0.82447336,66139.0,66138.0,0.00283347]
[1718616083328,0.77377336,66139.0,66138.0,0.00283347]
[1718616083543,1.07907632,66139.0,66138.0,0.00283347]
[1718616084370,1.07907632,66139.0,66138.0,0.00183347]
[1718616084695,1.26837632,66139.0,66138.0,0.00883347]
[1718616087714,0.96598332,66139.0,66138.0,0.01483347]
[1718616088563,0.77377336,66139.0,66138.0,0.01483347]
[1718616088772,0.82447336,66139.0,66138.0,0.01483347]
[1718616089399,0.82738332,66139.0,66138.0,0.01483347]
[1718616089602,1.12977632,66139.0,66138.0,0.01483347]
[1718616090731,0.77377336,66139.0,66138.0,0.01483347]
[1718616091357,0.82447336,66139.0,66138.0,0.01483347]
[1718616093763,1.12977632,66139.0,66138.0,0.01483347]
[1718616094466,1.27217632,66139.0,66138.0,0.01483347]
[1718616095294,1.29583721,66139.0,66138.0,0.01483347]
[1718616095723,1.17873721,66139.0,66138.0,0.01483347]
[1718616095936,1.29233721,66139.0,66138.0,0.01483347]
[1718616097442,0.80034421,66139.0,66138.0,0.01483347]
[1718616097852,1.10273721,66139.0,66138.0,0.01483347]
[1718616100455,1.28113968,66139.0,66138.0,0.01483347]
[1718616100667,1.10273721,66139.0,66138.0,0.01483347]
[1718616101108,1.15343721,66139.0,66138.0,0.01483347]
[1718616103190,1.31616479,66139.0,66138.0,0.01483347]
[1718616103633,1.26546479,66139.0,66138.0,0.01483347]
[1718616103812,1.15343721,66139.0,66138.0,0.01483347]
[1718616104215,1.31807129,66139.0,66138.0,0.01483347]
[1718616104842,1.15343721,66139.0,66138.0,0.01483347]
[1718616106898,1.31734526,66139.0,66138.0,0.01483347]
[1718616113930,1.31716331,66139.0,66138.0,0.01483347]
[1718616114350,1.26646331,66139.0,66138.0,0.01483347]
[1718616114558,1.31716331,66139.0,66138.0,0.01483347]
[1718616114771,1.15325526,66139.0,66138.0,0.01483347]
[1718616115423,1.12959437,66139.0,66138.0,0.01483347]
[1718616121115,1.45546462,66139.0,66138.0,0.01483347]
[1718616121356,1.46546462,66139.0,66138.0,0.01483347]
[1718616121575,1.89171104,66139.0,66138.0,0.01483347]
[1718616122470,1.89069586,66139.0,66138.0,0.01483347]
[1718616123538,1.89069586,66139.0,66138.0,0.00783347]
[1718616123764,1.89069586,66139.0,66138.0,0.00183347]
[1718616123973,1.89069586,66139.0,66138.0,0.00683347]
[1718616124186,1.89069586,66139.0,66138.0,0.00383347]
[1718616124410,1.89069586,66139.0,66138.0,0.00183347]
[1718616124851,1.89269586,66139.0,66138.0,0.00183347]
[1718616125084,1.84199586,66139.0,66138.0,0.00183347]
[1718616125321,1.86985762,66139.0,66138.0,0.00183347]
[1718616125532,1.89048001,66139.0,66138.0,0.00183347]
[1718616127502,1.8898548,66139.0,66138.0,0.00183347]
[1718616127771,1.8391548,66139.0,66138.0,0.00183347]
[1718616127977,1.8898548,66139.0,66138.0,0.00183347]
[1718616129952,1.8291548,66139.0,66138.0,0.00183347]
[1718616130168,1.85985762,66139.0,66138.0,0.00183347]
[1718616130610,1.86985762,66139.0,66138.0,0.00183347]
[1718616130818,1.85985762,66139.0,66138.0,0.00183347]
[1718616131262,1.86456472,66139.0,66138.0,0.00183347]
[1718616131463,1.87456472,66139.0,66138.0,0.00183347]
[1718616132447,2.17225062,66139.0,66138.0,0.00183347]
[1718616132873,1.98468037,66139.0,66138.0,0.00183347]
[1718616133225,2.13676816,66139.0,66138.0,0.00183347]
[1718616133442,2.08468037,66139.0,66138.0,0.00183347]
[1718616133651,2.06822282,66139.0,66138.0,0.00183347]
[1718616134094,2.21354207,66139.0,66138.0,0.00183347]
[1718616134329,2.26030074,66139.0,66138.0,0.00183347]
[1718616134538,2.19230998,66139.0,66138.0,0.00183347]
[1718616134746,2.13620293,66139.0,66138.0,0.00183347]
[1718616135018,2.13420293,66139.0,66138.0,0.00183347]
[1718616135177,2.28629072,66139.0,66138.0,0.00183347]
[1718616135374,2.31037743,66139.0,66138.0,0.00183347]
[1718616135581,2.24239732,66139.0,66138.0,0.00183347]
[1718616135779,2.31036375,66139.0,66138.0,0.00183347]
[1718616135984,2.25966375,66139.0,66138.0,0.00183347]
[1718616136190,2.16761061,66139.0,66138.0,0.00183347]
[1718616136392,2.21831061,66139.0,66138.0,0.00183347]
[1718616137004,2.22431061,66139.0,66138.0,0.00283347]
[1718616137302,2.26960574,66139.0,66138.0,0.00283347]
[1718616137504,2.26454075,66139.0,66138.0,0.00183347]
[1718616137945,2.27854075,66139.0,66138.0,0.00383347]
[1718616138602,1.97614775,66139.0,66138.0,0.00383347]
[1718616138821,2.20871483,66139.0,66138.0,0.00383347]
[1718616139048,2.27848523,66139.0,66138.0,0.00383347]
[1718616139256,2.23319483,66139.0,66138.0,0.00383347]
[1718616140126,2.33319483,66139.0,66138.0,0.00383347]
[1718616140573,2.23319483,66139.0,66138.0,0.00383347]
[1718616141924,2.3788415,66139.0,66138.0,0.00383347]
[1718616142143,2.4788415,66139.0,66138.0,0.00383347]
[1718616144420,2.4788415,66139.0,66138.0,0.00374129]